bitfinex-derivatives/quotes_BTCF0:USTF0_20250728
["timestamp","ask_amount","ask_price","bid_price","bid_amount"]
[1753720970023,0.87143018,118400.0,118390.0,0.86802396]
[1753720970424,1.09551018,118400.0,118390.0,0.86802396]
[1753720970925,0.4351945,118420.0,118400.0,0.042228]
[1753720971128,0.68960673,118420.0,118410.0,1.27825328]
[1753720971329,1.17150001,118420.0,118410.0,0.79631]
[1753720971525,1.17150001,118420.0,118410.0,0.06355]
[1753720971728,1.17150001,118420.0,118410.0,0.74579]
[1753720971930,1.17150001,118420.0,118410.0,0.84854566]
[1753720972531,1.09584342,118420.0,118410.0,0.84854566]
[1753720972732,1.17150001,118420.0,118410.0,0.84854566]
[1753720973032,1.17250001,118420.0,118410.0,0.84854566]
[1753720973229,1.09684342,118420.0,118410.0,0.84854566]
[1753720973620,1.10084342,118420.0,118410.0,0.84854566]
[1753720974122,1.09784342,118420.0,118410.0,0.84854566]
[1753720976630,1.09784342,118420.0,118410.0,0.10275566]
[1753720976936,0.6283734,118400.0,118390.0,0.2111641]
[1753720977237,0.6283734,118390.0,118380.0,0.51782296]
[1753720977533,1.06080668,118390.0,118380.0,1.19994296]
[1753720977734,1.06080668,118390.0,118380.0,1.24468296]
[1753720979341,1.06080668,118390.0,118380.0,1.20244776]
[1753720979837,1.06080668,118390.0,118380.0,1.03351186]
[1753720980040,1.06080668,118390.0,118380.0,1.10123151]
[1753720980426,1.06080668,118390.0,118380.0,1.10423151]
[1753720980637,1.06080668,118390.0,118380.0,1.36713151]
[1753720980936,1.06080668,118390.0,118380.0,1.36413151]
[1753720981539,1.06080668,118390.0,118380.0,1.40045519]
[1753720981739,1.07478112,118390.0,118380.0,1.40045519]
[1753720982341,0.04679,118400.0,118390.0,0.6137933]
[1753720982540,0.04679,118400.0,118390.0,1.04622658]
[1753720982738,0.04679,118400.0,118390.0,1.06869097]
[1753720982941,0.04679,118400.0,118390.0,1.06893625]
[1753720983633,0.04679,118400.0,118390.0,1.04722658]
[1753720985042,0.04679,118400.0,118390.0,1.04822658]
[1753720986143,0.45944,118400.0,118390.0,1.04822658]
[1753720991044,0.45944,118400.0,118390.0,0.6157933]
[1753720991244,0.45944,118400.0,118390.0,1.04822658]
[1753720994051,0.03774008,118410.0,118400.0,0.6989145]
[1753720994244,0.46384488,118410.0,118400.0,1.81322778]
[1753720994441,0.46384488,118410.0,118400.0,1.77099938]
[1753720996449,0.2408948,118410.0,118400.0,1.79393784]
[1753720996748,0.4728948,118410.0,118400.0,1.79393784]
[1753720998444,0.4728948,118410.0,118400.0,2.05683784]
[1753720998744,1.07423298,118410.0,118400.0,0.68595846]
[1753720998949,1.07423298,118410.0,118400.0,1.5137792]
[1753720999545,0.90532808,118410.0,118400.0,1.5137792]
[1753720999745,0.90532808,118410.0,118400.0,1.5591992]
[1753720999946,1.07423298,118410.0,118400.0,1.5591992]
[1753721000147,0.90532808,118410.0,118400.0,1.5591992]
[1753721000545,0.90532808,118410.0,118400.0,1.5137792]
[1753721000742,0.90532808,118410.0,118400.0,0.8319392]
[1753721000945,1.07423298,118410.0,118400.0,1.34482]
[1753721001148,1.07423298,118410.0,118400.0,1.5137392]
[1753721001846,0.90532808,118410.0,118400.0,1.5591592]
[1753721004751,0.4728948,118410.0,118400.0,1.5591592]
[1753721007155,0.6417997,118410.0,118400.0,1.5591592]
[1753721009554,0.6417997,118410.0,118400.0,1.39024]
[1753721009753,1.07423298,118410.0,118400.0,0.66302]
[1753721009955,1.07423298,118410.0,118400.0,1.34466]
[1753721010157,1.07423298,118410.0,118400.0,1.39258]
[1753721011460,1.07423298,118410.0,118400.0,1.5614992]
[1753721011862,1.07423298,118410.0,118400.0,1.39258]
[1753721012054,1.07423298,118410.0,118400.0,1.5614991]
[1753721012354,0.6417997,118410.0,118400.0,1.5614991]
[1753721012966,0.6417997,118410.0,118400.0,1.99393238]
[1753721013158,0.4728948,118410.0,118400.0,1.99393238]
[1753721014477,0.6417997,118410.0,118400.0,1.99393238]
[1753721015073,0.6417997,118410.0,118400.0,2.01681295]
[1753721016168,0.6417997,118410.0,118400.0,1.75391295]
[1753721018175,0.1823597,118410.0,118400.0,1.75391295]
[1753721018375,0.2321197,118410.0,118400.0,1.75391295]
[1753721018774,0.3088897,118410.0,118400.0,0.90335385]
[1753721018975,1.07826298,118410.0,118400.0,1.15244057]
[1753721020365,1.07826298,118410.0,118400.0,0.70440057]
[1753721020570,1.07826298,118410.0,118400.0,0.68152]
[1753721021477,1.07826298,118410.0,118400.0,0.83542]
[1753721022074,1.07826298,118410.0,118400.0,0.8583077]
[1753721022675,1.08126298,118410.0,118400.0,0.8583077]
[1753721022871,1.08126298,118410.0,118400.0,0.1767877]
[1753721023077,1.08126298,118410.0,118400.0,0.8582677]
[1753721023381,1.08326298,118410.0,118400.0,0.8582677]
[1753721024278,1.08326298,118410.0,118400.0,0.83538]
[1753721025275,1.08326298,118410.0,118400.0,1.04531]
[1753721025676,1.08326298,118410.0,118400.0,0.40898]
[1753721025976,1.08326298,118410.0,118400.0,1.09046]
[1753721026679,1.08326298,118410.0,118400.0,0.40898]
[1753721026881,1.08326298,118410.0,118400.0,1.09042]
[1753721027376,1.08326298,118410.0,118400.0,0.40898]
[1753721027582,1.08326298,118410.0,118400.0,1.09042]
[1753721027770,1.08326298,118410.0,118400.0,0.10912]
[1753721028081,0.6324033,118390.0,118380.0,1.01128199]
[1753721028281,1.07829138,118390.0,118380.0,1.71562052]
[1753721028879,1.07829138,118390.0,118380.0,1.54667372]
[1753721029181,1.07829138,118390.0,118380.0,1.03418122]
[1753721029481,0.6458581,118390.0,118380.0,1.54667372]
[1753721031185,1.07829138,118390.0,118380.0,1.54667372]
[1753721031576,1.07829138,118390.0,118380.0,1.52377519]
[1753721031773,1.07829138,118390.0,118380.0,1.54664134]
[1753721031984,1.07829138,118390.0,118380.0,1.52377519]
[1753721032881,1.07929138,118390.0,118380.0,1.52377519]
[1753721033081,1.08029138,118390.0,118380.0,1.52377519]
[1753721036087,1.08029138,118390.0,118380.0,0.84233519]
[1753721036283,1.08029138,118390.0,118380.0,0.29907519]
[1753721036487,1.08029138,118390.0,118380.0,1.20396519]
[1753721037191,1.08029138,118390.0,118380.0,1.24906519]
[1753721039392,1.08029138,118390.0,118380.0,1.20396519]
[1753721040894,1.08029138,118390.0,118380.0,1.41801279]
[1753721041291,1.08029138,118390.0,118380.0,1.24906519]
[1753721043294,1.08029138,118390.0,118380.0,0.56770519]
[1753721043496,1.08029138,118390.0,118380.0,1.24902519]
[1753721043689,1.08029138,118390.0,118380.0,1.20392519]
[1753721045390,1.08029138,118390.0,118380.0,0.78536333]
[1753721045694,1.08029138,118390.0,118380.0,0.10404333]
[1753721045897,0.3465375,118380.0,118370.0,1.08139]
[1753721046098,1.05512558,118380.0,118370.0,1.14935436]
[1753721046284,0.83905558,118380.0,118370.0,1.14935436]
[1753721046484,0.2290323,118380.0,118370.0,1.75074944]
[1753721046992,0.2749423,118380.0,118370.0,1.14935436]
[1753721047184,0.2749423,118380.0,118370.0,1.31831616]
[1753721047185,0.4551123,118380.0,118370.0,1.31831616]
[1753721047389,0.6226923,118380.0,118370.0,1.36153567]
[1753721048698,0.6226923,118380.0,118370.0,1.19257387]
[1753721049198,0.1824023,118380.0,118370.0,1.18147841]
[1753721049395,0.1824023,118380.0,118370.0,1.83989405]
[1753721049596,0.1824023,118380.0,118370.0,1.86276003]
[1753721049597,0.0134548,118380.0,118370.0,1.86276003]
[1753721049898,0.3135001,118390.0,118370.0,1.94723863]
[1753721050291,0.89424338,118390.0,118370.0,1.72084833]
[1753721050498,1.13959338,118390.0,118380.0,0.44517]
[1753721050698,0.7071601,118390.0,118380.0,0.46803598]
[1753721050896,0.6226894,118390.0,118380.0,0.63698358]
[1753721051200,0.6226894,118390.0,118380.0,0.46803598]
[1753721052393,0.6226894,118390.0,118380.0,0.63698358]
[1753721052895,0.6226894,118390.0,118380.0,0.6141176]
[1753721053501,0.2290182,118390.0,118380.0,1.04655088]
[1753721053903,0.3745482,118390.0,118380.0,1.04655088]
[1753721054198,0.6226782,118390.0,118380.0,1.04655088]
[1753721056203,0.6226782,118390.0,118380.0,1.06944394]
[1753721056703,0.6226782,118390.0,118380.0,0.63701066]
[1753721056904,0.6226782,118390.0,118380.0,0.6141176]
[1753721057103,0.6226782,118390.0,118380.0,0.44517]
[1753721057300,0.6226782,118390.0,118380.0,0.63701519]
[1753721057501,0.6226782,118390.0,118380.0,0.6141161]
[1753721057703,0.6226782,118390.0,118380.0,0.8770161]
[1753721058001,0.6226782,118390.0,118380.0,0.70807]
[1753721058202,0.6226782,118390.0,118380.0,0.89992077]
[1753721058405,0.6226782,118390.0,118380.0,0.8770162]
[1753721062497,0.4537448,118390.0,118380.0,1.30944948]
[1753721062708,0.6226777,118390.0,118380.0,1.30944948]
[1753721063812,0.6226777,118390.0,118380.0,0.8770162]
[1753721064501,0.6226777,118390.0,118380.0,0.70807]
[1753721065012,0.94652165,118390.0,118380.0,1.05482058]
[1753721065214,0.94652165,118390.0,118380.0,1.22376758]
[1753721065809,0.94652165,118390.0,118380.0,1.20086095]
[1753721068216,0.6226777,118390.0,118380.0,1.20086095]
[1753721068417,0.77758875,118390.0,118380.0,1.20086095]
[1753721068615,0.4537448,118390.0,118380.0,1.20086095]
[1753721068807,0.46169875,118390.0,118380.0,1.5247049]
[1753721069013,0.216979,118400.0,118390.0,0.6187828]
[1753721069208,0.216979,118400.0,118390.0,1.62386655]
[1753721069415,0.94437295,118400.0,118390.0,1.88676655]
[1753721069916,0.94437295,118400.0,118390.0,1.90969231]
[1753721070820,0.620529,118400.0,118390.0,1.58584836]
[1753721071720,0.620529,118400.0,118390.0,1.5629226]
[1753721072521,0.620529,118400.0,118390.0,1.39399]
[1753721072721,0.620529,118400.0,118390.0,1.5629227]
[1753721074927,0.620529,118400.0,118390.0,1.58583141]
[1753721075120,0.620529,118400.0,118390.0,1.5629227]
[1753721075420,0.620529,118400.0,118390.0,1.58582994]
[1753721076226,0.45161,118400.0,118390.0,1.58582994]
[1753721076426,0.45161,118400.0,118390.0,2.01754148]
[1753721079125,0.6205284,118400.0,118390.0,2.01754203]
[1753721079425,0.45161,118400.0,118390.0,2.01754203]
[1753721080030,0.38185,118400.0,118390.0,2.01754203]
[1753721080331,0.23073,118400.0,118390.0,2.01754203]
[1753721081028,0.13874406,118400.0,118390.0,1.99463424]
[1753721084933,0.13874406,118400.0,118390.0,2.01750493]
[1753721085635,0.35962406,118400.0,118390.0,1.99463424]
[1753721085836,0.35962406,118400.0,118390.0,1.5629227]
[1753721085837,0.63402266,118400.0,118390.0,1.5629227]
[1753721087035,0.63402266,118400.0,118390.0,1.39399]
[1753721090734,0.9578108,118400.0,118390.0,1.71777814]
[1753721091240,0.63402266,118400.0,118390.0,1.71777814]
[1753721091440,0.9578108,118400.0,118390.0,1.71777814]
[1753721094639,1.28159894,118400.0,118390.0,1.394]
[1753721095943,1.28359894,118400.0,118390.0,1.41688422]
[1753721096340,1.28359894,118400.0,118390.0,1.394]
[1753721097943,0.9598108,118400.0,118390.0,1.71778814]
[1753721098243,0.9598108,118400.0,118390.0,1.74068755]
[1753721098444,0.9598108,118400.0,118390.0,1.41689941]
[1753721098747,0.9598108,118400.0,118390.0,1.74068755]
[1753721099544,0.9598108,118400.0,118390.0,1.90962025]
[1753721100138,0.9598108,118400.0,118390.0,1.74068755]
[1753721103945,0.9598108,118400.0,118390.0,1.90962025]
[1753721104749,0.9598108,118400.0,118390.0,1.58583211]
[1753721104949,0.9598108,118400.0,118390.0,1.74068755]
[1753721105149,0.9588108,118400.0,118390.0,1.74068755]
[1753721105951,0.9588108,118400.0,118390.0,1.90962025]
[1753721107154,0.9578108,118400.0,118390.0,1.90962025]
[1753721107352,0.63402266,118400.0,118390.0,1.90962025]
[1753721107553,0.9578108,118400.0,118390.0,1.90962025]
[1753721107950,0.9578108,118400.0,118390.0,1.74068755]
[1753721108253,0.9578108,118400.0,118390.0,1.90962025]
[1753721110258,0.63402266,118400.0,118390.0,1.90962025]
[1753721110446,0.9578108,118400.0,118390.0,1.90962025]
[1753721112758,0.9578108,118400.0,118390.0,1.90962015]
[1753721113065,0.63402266,118400.0,118390.0,1.90962015]
[1753721113358,0.9578108,118400.0,118390.0,1.90962015]
[1753721113761,0.63402266,118400.0,118390.0,1.90962015]
[1753721114062,0.9578108,118400.0,118390.0,1.90962015]
[1753721114358,0.9578108,118400.0,118390.0,1.74068755]
[1753721114750,0.9578108,118400.0,118390.0,1.88672084]
[1753721114952,0.9578108,118400.0,118390.0,1.90955628]
[1753721115560,0.7888922,118400.0,118390.0,1.90955628]
[1753721116561,0.9578106,118400.0,118390.0,1.90955628]
[1753721117163,0.7888922,118400.0,118390.0,1.90955628]
[1753721118761,0.46510406,118400.0,118390.0,1.90955628]
[1753721118961,0.7888922,118400.0,118390.0,1.90955628]
[1753721119964,0.9578106,118400.0,118390.0,1.90955628]
[1753721120163,0.9578106,118400.0,118390.0,1.74062358]
[1753721120363,0.9578106,118400.0,118390.0,1.90955628]
[1753721120563,0.9578106,118400.0,118390.0,1.74062358]
[1753721121165,0.9578106,118400.0,118390.0,1.90955618]
[1753721121464,0.9578106,118400.0,118390.0,1.74062358]
[1753721121764,1.28159874,118400.0,118390.0,0.68939544]
[1753721121964,1.28159874,118400.0,118390.0,1.36002544]
[1753721122769,1.28159874,118400.0,118390.0,1.26605804]
[1753721123066,1.28259874,118400.0,118390.0,1.09712544]
[1753721123561,1.28259874,118400.0,118390.0,0.02283544]
[1753721123762,1.28259874,118400.0,118390.0,0.68104]
[1753721123763,1.60638688,118400.0,118390.0,0.68104]
[1753721123956,1.66712323,118400.0,118390.0,0.68104]
[1753721124162,0.3483127,118390.0,118380.0,0.459074]
[1753721124467,0.9574149,118390.0,118380.0,1.18273047]
[1753721124667,0.9574149,118390.0,118380.0,1.90935047]
[1753721124866,0.63362676,118390.0,118380.0,1.90935047]
[1753721125062,0.9574149,118390.0,118380.0,1.90935047]
[1753721125865,1.01815125,118390.0,118380.0,1.88649904]
[1753721126869,1.12618535,118390.0,118380.0,1.5627109]
[1753721127769,1.12618535,118390.0,118380.0,0.8816709]
[1753721127969,1.12618535,118390.0,118380.0,1.393764]
[1753721128670,1.12618535,118390.0,118380.0,1.130864]
[1753721129976,1.12618535,118390.0,118380.0,0.449824]
[1753721130275,1.12618535,118390.0,118380.0,1.130864]
[1753721133680,1.12651493,118390.0,118380.0,1.130864]
[1753721133882,1.06577858,118390.0,118380.0,1.130864]
[1753721134087,1.06577858,118390.0,118380.0,1.085284]
[1753721134785,1.06577858,118390.0,118380.0,1.254231]
[1753721135280,1.06677858,118390.0,118380.0,1.254231]
[1753721135483,1.06777858,118390.0,118380.0,1.299811]
[1753721135778,1.06777858,118390.0,118380.0,1.32239576]
[1753721136283,1.06777858,118390.0,118380.0,1.15344876]
[1753721137077,1.06777858,118390.0,118380.0,0.72251876]
[1753721137279,1.06777858,118390.0,118380.0,0.699934]
[1753721137480,1.06777858,118390.0,118380.0,1.085284]
[1753721137879,1.06777858,118390.0,118380.0,1.130864]
[1753721143188,1.06777858,118390.0,118380.0,1.2998112]
[1753721143489,1.06777858,118390.0,118380.0,1.130864]
[1753721143690,1.06777858,118390.0,118380.0,1.2998112]
[1753721144288,1.06777858,118390.0,118380.0,1.130864]
[1753721144488,1.06777858,118390.0,118380.0,1.2998112]
[1753721144984,1.06777858,118390.0,118380.0,1.130864]
[1753721148792,0.95984022,118390.0,118380.0,1.45474788]
[1753721149187,0.95984022,118390.0,118380.0,1.130864]
[1753721149391,0.95984022,118390.0,118380.0,0.449824]
[1753721149588,0.95984022,118390.0,118380.0,1.085204]
[1753721150593,0.95984022,118390.0,118380.0,1.130784]
[1753721151594,0.95984022,118390.0,118380.0,1.085204]
[1753721153892,0.95984022,118390.0,118380.0,1.2993112]
[1753721155297,0.95984022,118390.0,118380.0,1.62319508]
[1753721155898,0.18475634,118390.0,118380.0,1.96965427]
[1753721156593,0.06131364,118390.0,118380.0,1.96965427]
[1753721157093,0.01582364,118390.0,118380.0,1.96965427]
[1753721157798,0.01482364,118390.0,118380.0,1.97065427]
[1753721158200,0.01482364,118390.0,118380.0,2.23355427]
[1753721158399,0.01382364,118390.0,118380.0,2.23355427]
[1753721158697,0.01382364,118390.0,118380.0,2.23455427]
[1753721161296,0.18275624,118390.0,118380.0,2.23455427]
[1753721161496,0.22824624,118390.0,118380.0,2.23455427]
[1753721161696,0.05931364,118390.0,118380.0,2.23455427]
[1753721165597,0.04549,118390.0,118380.0,2.21197896]
[1753721165798,0.05934808,118390.0,118380.0,2.2345502]
[1753721174111,0.01385808,118390.0,118380.0,2.2345502]
[1753721175906,0.01385808,118390.0,118380.0,2.21197896]
[1753721178808,0.07459443,118390.0,118380.0,2.21197896]
[1753721179909,0.01385808,118390.0,118380.0,2.21197896]
[1753721181118,0.12008443,118390.0,118380.0,2.21197896]
[1753721183920,0.05934808,118390.0,118380.0,2.21197896]
[1753721184415,0.05934808,118390.0,118380.0,1.53101896]
[1753721184717,1.00627121,118390.0,118380.0,1.349784]
[1753721184913,0.94553486,118390.0,118380.0,1.3106611]
[1753721185120,0.94553486,118390.0,118380.0,1.5180911]
[1753721185519,0.94553486,118390.0,118380.0,1.88873498]
[1753721185920,0.94553486,118390.0,118380.0,1.91131506]
[1753721186121,0.94553486,118390.0,118380.0,1.58739118]
[1753721186522,0.94553486,118390.0,118380.0,1.91127506]
[1753721187027,0.94553486,118390.0,118380.0,1.91027506]
[1753721187320,0.94553486,118390.0,118380.0,1.90927506]
[1753721187527,0.94553486,118390.0,118380.0,1.74132796]
[1753721187726,0.94553486,118390.0,118380.0,1.91027506]
[1753721188229,0.94553486,118390.0,118380.0,1.58639118]
[1753721189727,0.94553486,118390.0,118380.0,1.89138106]
[1753721195138,0.62165098,118390.0,118380.0,1.89138106]
[1753721195334,0.94553486,118390.0,118380.0,1.89138106]
[1753721195636,0.77660196,118390.0,118380.0,2.21526494]
[1753721196027,0.70440196,118390.0,118380.0,2.21526494]
[1753721196831,0.94553486,118390.0,118380.0,1.72243396]
[1753721197026,0.62165098,118390.0,118380.0,1.72243396]
[1753721197338,0.94553486,118390.0,118380.0,1.89138106]
[1753721199140,0.77660196,118390.0,118380.0,1.89138106]
[1753721199341,0.77660196,118390.0,118380.0,2.21526494]
[1753721200136,0.45271808,118390.0,118380.0,2.21526494]
[1753721200336,0.77660196,118390.0,118380.0,2.21526494]
[1753721200644,0.94553486,118390.0,118380.0,2.21526494]
[1753721200830,0.50667486,118390.0,118380.0,1.89138106]
[1753721201034,0.55638486,118390.0,118380.0,1.89138106]
[1753721201236,0.38745196,118390.0,118380.0,1.89138106]
[1753721201742,0.58333196,118390.0,118380.0,1.89138106]
[1753721201942,0.25944808,118390.0,118380.0,1.89138106]
[1753721202138,0.29017808,118390.0,118380.0,2.21526494]
[1753721202340,0.61406196,118390.0,118380.0,2.21526494]
[1753721203452,0.70440196,118390.0,118380.0,2.21526494]
[1753721203741,0.77660196,118390.0,118380.0,2.21526494]
[1753721204045,0.70440196,118390.0,118380.0,2.21526494]
[1753721204846,0.87333486,118390.0,118380.0,2.21526494]
[1753721205045,0.77660196,118390.0,118380.0,2.21526494]
[1753721207748,0.45271808,118390.0,118380.0,2.21526494]
[1753721208145,0.77660196,118390.0,118380.0,2.21526494]
[1753721208446,0.01385808,118390.0,118380.0,2.21526494]
[1753721209250,0.06356808,118390.0,118380.0,2.21526494]
[1753721210656,0.01385808,118390.0,118380.0,2.21526494]
[1753721212448,0.57573825,118410.0,118400.0,0.35619]
[1753721212449,0.44126875,118410.0,118400.0,0.35619]
[1753721212654,1.07130263,118410.0,118400.0,1.43172388]
[1753721213257,1.01056628,118410.0,118400.0,1.43172388]
[1753721213648,1.01456628,118410.0,118400.0,1.43172388]
[1753721213850,0.6906824,118410.0,118400.0,1.43172388]
[1753721214148,1.01456628,118410.0,118400.0,1.60064248]
[1753721214442,1.01456628,118410.0,118400.0,1.2767586]
[1753721214753,1.01256628,118410.0,118400.0,1.2767586]
[1753721215255,1.01056628,118410.0,118400.0,1.05892]
[1753721215453,1.01156628,118410.0,118400.0,1.05892]
[1753721216354,1.01156628,118410.0,118400.0,1.2278386]
[1753721217461,1.01156628,118410.0,118400.0,1.2767586]
[1753721219257,1.07239012,118410.0,118400.0,1.2767586]
[1753721221661,1.07239012,118410.0,118400.0,1.60064248]
[1753721222661,1.07239012,118410.0,118400.0,1.43172388]
[1753721223369,1.07239012,118410.0,118400.0,1.2767586]
[1753721223757,1.01156628,118410.0,118400.0,1.2767586]
[1753721224361,1.01156628,118410.0,118400.0,1.10784]
[1753721224562,1.02547758,118410.0,118400.0,1.10784]
[1753721225272,1.02547758,118410.0,118400.0,1.2767586]
[1753721225462,1.02547758,118410.0,118400.0,1.10784]
[1753721226467,1.08629519,118410.0,118400.0,1.10784]
[1753721226668,1.08629519,118410.0,118400.0,1.60064248]
[1753721226863,0.24463142,118410.0,118400.0,1.92452636]
[1753721227168,0.2309756,118410.0,118400.0,1.92452636]
[1753721227362,0.73023948,118410.0,118400.0,1.92452636]
[1753721227672,0.6171256,118410.0,118400.0,1.60064248]
[1753721227964,0.28677959,118420.0,118410.0,0.5964243]
[1753721228167,0.32900519,118420.0,118410.0,1.19855585]
[1753721228369,0.3005086,118420.0,118410.0,0.87467197]
[1753721229074,0.3015086,118420.0,118410.0,0.87467197]
[1753721229872,0.3015086,118420.0,118410.0,0.70576767]
[1753721230674,0.5239286,118420.0,118410.0,0.70576767]
[1753721230872,0.91599248,118420.0,118410.0,0.70576767]
[1753721231172,1.01154248,118420.0,118410.0,0.70576767]
[1753721232072,1.01154248,118420.0,118410.0,0.96866767]
[1753721232370,1.01154248,118420.0,118410.0,1.13757337]
[1753721232775,0.6876586,118420.0,118410.0,0.81368949]
[1753721233474,0.645433,118420.0,118410.0,0.81368949]
[1753721234373,0.6032074,118420.0,118410.0,0.81368949]
[1753721235367,0.6032074,118420.0,118410.0,1.24524876]
[1753721236266,1.03476667,118420.0,118410.0,0.81368949]
[1753721236675,1.03476667,118420.0,118410.0,0.64478379]
[1753721236871,1.03476667,118420.0,118410.0,0.94286]
[1753721237872,1.03476667,118420.0,118410.0,1.06558]
[1753721238073,1.09554181,118420.0,118410.0,0.90543]
[1753721238273,1.09554181,118420.0,118410.0,0.95378]
[1753721240270,1.09554181,118420.0,118400.0,0.5229689]
[1753721240271,0.6022156,118410.0,118400.0,0.2629]
[1753721240576,1.10787793,118410.0,118400.0,0.94282]
[1753721240876,1.10787793,118410.0,118400.0,1.16829]
[1753721241471,1.10787793,118410.0,118400.0,1.16929]
[1753721242174,1.10787793,118410.0,118400.0,1.17029]
[1753721242574,1.10787793,118410.0,118400.0,1.16929]
[1753721243272,1.10789332,118410.0,118400.0,0.2639]
[1753721243467,1.04710279,118410.0,118400.0,0.94282]
[1753721243676,1.04810279,118410.0,118400.0,0.94282]
[1753721243868,1.04810279,118410.0,118400.0,0.8488399]
[1753721244177,1.04810279,118410.0,118400.0,1.1400199]
[1753721244377,0.61654352,118410.0,118400.0,1.2579099]
[1753721244574,1.04810279,118410.0,118400.0,1.2579099]
[1753721244774,1.04810279,118410.0,118400.0,1.08899]
[1753721248383,1.04810279,118410.0,118400.0,1.2579099]
[1753721248783,1.04810279,118410.0,118400.0,1.08899]
[1753721249583,1.10889336,118410.0,118400.0,1.08899]
[1753721249881,0.67733409,118410.0,118400.0,1.2579099]
[1753721250082,1.10889336,118410.0,118400.0,1.2579099]
[1753721250285,0.46673409,118410.0,118400.0,1.68946917]
[1753721250786,0.01432792,118410.0,118400.0,1.68946917]
[1753721251084,0.18323352,118410.0,118400.0,1.2579099]
[1753721251382,0.23161352,118410.0,118400.0,1.2579099]
[1753721251774,0.23161352,118410.0,118400.0,1.2589099]
[1753721252278,0.23161352,118410.0,118400.0,1.69046917]
[1753721253386,0.23161352,118410.0,118400.0,1.52154927]
[1753721253584,0.45045352,118410.0,118400.0,1.52154927]
[1753721254184,0.45045352,118410.0,118400.0,0.41007]
[1753721254485,1.04352279,118410.0,118400.0,1.08991]
[1753721254685,0.61096352,118410.0,118400.0,1.08991]
[1753721254985,0.61096352,118410.0,118400.0,1.11396185]
[1753721255690,0.61096352,118410.0,118400.0,1.37686185]
[1753721255985,0.61096352,118410.0,118400.0,1.35381]
[1753721256882,0.61096352,118410.0,118400.0,1.5227299]
[1753721257381,0.44205792,118410.0,118400.0,1.95428917]
[1753721257587,0.3893213,118420.0,118410.0,0.5066456]
[1753721257774,0.5274313,118420.0,118410.0,1.00953487]
[1753721258085,0.5976213,118420.0,118410.0,0.5779756]
[1753721258384,0.42873,118420.0,118410.0,0.5779756]
[1753721258884,0.5976214,118420.0,118410.0,0.5779756]
[1753721259284,0.65841197,118420.0,118410.0,1.00953487]
[1753721259985,0.5976214,118420.0,118410.0,1.00953487]
[1753721261485,0.5976214,118420.0,118410.0,0.84062927]
[1753721261786,0.5976214,118420.0,118410.0,1.00953487]
[1753721261988,0.5976214,118420.0,118410.0,0.84062927]
[1753721262383,0.5976214,118420.0,118410.0,0.40907]
[1753721262588,0.5976214,118420.0,118410.0,0.5779756]
[1753721263194,0.5986214,118420.0,118410.0,0.5779756]
[1753721265492,0.5986214,118420.0,118410.0,0.40907]
[1753721265991,0.65941197,118420.0,118410.0,0.40907]
[1753721267596,0.65941197,118420.0,118410.0,0.67197]
[1753721268684,0.65941197,118420.0,118410.0,0.8408756]
[1753721269297,0.65941197,118420.0,118410.0,0.67197]
[1753721269596,0.67269232,118420.0,118410.0,0.8408756]
[1753721270796,0.67269232,118420.0,118410.0,0.67197]
[1753721271793,0.67269232,118420.0,118410.0,0.8408756]
[1753721272097,0.67269232,118420.0,118410.0,0.67197]
[1753721272397,1.10425159,118420.0,118410.0,0.94266]
[1753721273093,1.10425159,118420.0,118410.0,0.2629]
[1753721273397,1.10425159,118420.0,118410.0,0.94266]
[1753721273597,1.10425159,118420.0,118410.0,0.79464]
[1753721273997,1.10425159,118420.0,118410.0,0.86597]
[1753721274198,1.10425159,118420.0,118410.0,0.89811]
[1753721274800,0.67269232,118420.0,118410.0,0.89811]
[1753721275002,1.10425159,118420.0,118410.0,1.03786]
[1753721275302,1.11911761,118420.0,118410.0,1.03786]
[1753721276001,1.10422745,118420.0,118410.0,1.03786]
[1753721278804,0.67266818,118420.0,118410.0,1.03786]
[1753721279006,1.10422745,118420.0,118410.0,1.03786]
[1753721280106,1.04346102,118420.0,118410.0,1.03786]
[1753721281493,1.04346102,118420.0,118410.0,0.03214]
[1753721281811,1.04346102,118420.0,118400.0,0.19295]
[1753721281812,0.5829856,118410.0,118400.0,0.19295]
[1753721282005,1.02782522,118410.0,118400.0,1.06471986]
[1753721282202,1.02782522,118410.0,118400.0,1.06011996]
[1753721282909,1.02782522,118410.0,118400.0,1.06111996]
[1753721284910,1.02782522,118410.0,118400.0,1.10873996]
[1753721285806,1.02782522,118410.0,118400.0,1.08561]
[1753721287206,1.02782522,118410.0,118400.0,1.10864701]
[1753721288406,1.02782522,118410.0,118400.0,1.08561]
[1753721289111,1.02782522,118410.0,118400.0,1.1086396]
[1753721293919,1.01454487,118410.0,118400.0,1.08561]
[1753721294214,1.02792549,118410.0,118400.0,1.10863692]
[1753721295305,1.02792549,118410.0,118400.0,1.08561]
[1753721295811,0.35518062,118410.0,118400.0,1.70911418]
[1753721296316,0.42746062,118410.0,118400.0,1.27755491]
[1753721296517,0.59636622,118410.0,118400.0,1.27755491]
[1753721297519,1.02792549,118410.0,118400.0,1.2545299]
[1753721297721,1.02792549,118410.0,118400.0,1.27755237]
[1753721298520,1.02792549,118410.0,118400.0,1.2545299]
[1753721299519,1.02792549,118410.0,118400.0,1.27755019]
[1753721299914,1.02792549,118410.0,118400.0,1.2545299]
[1753721300414,1.08869192,118410.0,118400.0,1.2545299]
[1753721304521,1.02792549,118410.0,118400.0,1.08561]
[1753721304915,0.92013732,118410.0,118400.0,1.08561]
[1753721306624,0.92013732,118410.0,118400.0,1.2545299]
[1753721307129,0.92013732,118410.0,118400.0,1.08561]
[1753721307727,0.92013732,118410.0,118400.0,1.2545299]
[1753721308028,0.92013732,118410.0,118400.0,1.578301]
[1753721308428,0.59636622,118410.0,118400.0,1.578301]
[1753721308726,0.92013732,118410.0,118400.0,1.578301]
[1753721309330,0.92013732,118410.0,118400.0,1.60115912]
[1753721310731,0.59636622,118410.0,118400.0,1.27738802]
[1753721311637,1.02801627,118410.0,118400.0,1.27738802]
[1753721313634,1.02801627,118410.0,118400.0,1.10846812]
[1753721313830,1.02801627,118410.0,118400.0,1.27738802]
[1753721314829,1.0887827,118410.0,118400.0,0.68156]
[1753721315733,1.0897827,118410.0,118400.0,0.79053]
[1753721315930,1.10467286,118410.0,118400.0,0.78953]
[1753721316132,0.5880399,118400.0,118390.0,0.01860754]
[1753721316338,1.03307057,118400.0,118390.0,1.04116754]
[1753721316729,1.03307057,118400.0,118390.0,0.41138754]
[1753721316930,1.09391378,118400.0,118390.0,1.09090754]
[1753721317434,1.09391378,118400.0,118390.0,1.09190754]
[1753721318239,1.03307057,118400.0,118390.0,1.09290754]
[1753721321334,1.03307057,118400.0,118390.0,0.41338754]
[1753721321541,1.03307057,118400.0,118390.0,1.09286754]
[1753721322142,1.03307057,118400.0,118390.0,1.26180164]
[1753721322347,1.03307057,118400.0,118390.0,0.58232164]
[1753721322544,1.03307057,118400.0,118390.0,1.26180164]
[1753721323045,1.03307057,118400.0,118390.0,1.09286754]